Workbook

Sheet Лист1
I1: К постановлению Администрации Североуральского городского округа от .03.2016г. №
A2: Приложение № 2 к муниципальной программе Североуральского городского округа «Развитие жилищно-коммунального хозяйства и транспортного обслуживания населения, повышение энергетической эффективности и охрана окружающей среды в Североуральском городском округе» на 2014-2020 годы
A3: План мероприятий
A4: по выполнению муниципальной программы Североуральского городского округа
A5: «Развитие жилищно-коммунального хозяйства и транспортного обслуживания населения,
A6: повышение энергетической эффективности и охрана окружающей среды в Североуральском городском округе» на 2014-2020 годы
A8: № строки | B8: Наименование мероприятия/ Источники расходов на финансирование | C8: Объем расходов на выполнение мероприятия за счет всех источников ресурсного обеспечения, тыс. руб. | K8: Номер строки целевых показателей, на достижение которых направлены мероприятия
C9: Всего | D9: 2014 год | E9: 2015 год | F9: 2016 год | G9: 2017 год | H9: 2018 год | I9: 2019 год | J9: 2020 год
B10: 1 | C10: 2 | D10: 3 | E10: 4 | F10: 5 | G10: 6 | H10: 7 | I10: 8 | J10: 9 | K10: 10
B11: ВСЕГО по муниципальной программе, в том числе: | C11: =SUM(C12:C14) -> 1120498.96 | D11: 283826.9 | E11: =SUM(E12:E14) -> 348239.16 | F11: =SUM(F12:F14) -> 177770.5 | G11: 76165.6 | H11: 78165.6 | I11: 78165.6 | J11: 78165.6 | K11: Х
B12: местный бюджет | C12: =SUM(D12:J12) -> 662382.66 | D12: =SUM(D16+D20) -> 92792.8 | E12: =SUM(E16+E20) -> 126635.26 | F12: 132292.2 | G12: 76165.6 | H12: 78165.6 | I12: 78165.6 | J12: 78165.6
B13: областной бюджет | C13: =SUM(D13:J13) -> 271805.1 | D13: =SUM(D17+D21) -> 109216.1 | E13: =SUM(E17+E21) -> 135104.3 | F13: =SUM(F17+F21) -> 27484.7 | G13: =SUM(G17+G21) -> 0 | H13: =SUM(H17+H21) -> 0 | I13: =SUM(I17+I21) -> 0 | J13: =SUM(J17+J21) -> 0
B14: федеральный бюджет | C14: =SUM(D14:J14) -> 186311.2 | D14: =SUM(D22+D18) -> 81818 | E14: =SUM(E22+E18) -> 86499.6 | F14: 17993.6 | G14: 0 | H14: 0 | I14: 0 | J14: 0
B15: Капитальные вложения | C15: =SUM(C16:C18) -> 630033.8 | D15: =SUM(D16:D18) -> 232761.9 | E15: =SUM(E16:E18) -> 271669 | F15: 90770.5 | G15: 8708.1 | H15: 8708.1 | I15: 8708.1 | J15: 8708.1 | K15: Х
B16: местный бюджет | C16: =SUM(D16:J16) -> 176259.8 | D16: =D30+D114+D182+D202+D232+D265+D334+D353 -> 44727.8 | E16: 50411.3 | F16: 46288.3 | G16: 8708.1 | H16: 8708.1 | I16: 8708.1 | J16: 8708.1
B17: областной бюджет | C17: =SUM(D17:J17) -> 267462.8 | D17: =D115+D203+D31 -> 106216.1 | E17: =E115+E203+E31 -> 134758.1 | F17: =F115+F203 -> 26488.6 | G17: =G115+G203 -> 0 | H17: =H115+H203 -> 0 | I17: =I115+I203 -> 0 | J17: =J115+J203 -> 0
B18: федеральный бюджет | C18: =SUM(D18:J18) -> 186311.2 | D18: =D204 -> 81818 | E18: =E204 -> 86499.6 | F18: 17993.6 | G18: 0 | H18: 0 | I18: 0 | J18: 0
B19: Прочие нужды | C19: =SUM(C20:C21) -> 490465.16 | D19: =SUM(D20:D21) -> 51065 | E19: =SUM(E20:E21) -> 76570.16 | F19: 87000 | G19: 67457.5 | H19: 69457.5 | I19: 69457.5 | J19: 69457.5 | K19: Х
B20: местный бюджет | C20: =SUM(D20:J20) -> 486122.86 | D20: =D45+D160+D191+D220+D274+D343+D369+D241+D322 -> 48065 | E20: 76223.96 | F20: 86003.9 | G20: 67457.5 | H20: 69457.5 | I20: 69457.5 | J20: 69457.5
B21: областной бюджет | C21: =SUM(D21:J21) -> 4342.3 | D21: =SUM(D161+D368+D46) -> 3000 | E21: 346.2 | F21: 996.1 | G21: 0 | H21: 0 | I21: 0 | J21: 0
B22: федеральный бюджет | C22: =SUM(D22:J22) -> 0 | D22: 0 | E22: =E161 -> 0 | F22: 0 | G22: 0 | H22: 0 | I22: 0 | J22: 0
A23: Подпрограмма 1: Комплексное благоустройство территории Североуральского городского округа
B24: Всего по подпрограмме 1, | C24: =SUM(C26+C27) -> 212605.7 | D24: =SUM(D26:D27) -> 25725.2 | E24: 29762.2 | F24: 43025.1 | G24: 28523.3 | H24: 28523.3 | I24: 28523.3 | J24: 28523.3 | K24: Х
B25: в том числе:
B26: местный бюджет | C26: =SUM(D26:J26) -> 206756 | D26: =SUM(D30+D45) -> 24510.5 | E26: 26102.3 | F26: 42050 | G26: 28523.3 | H26: 28523.3 | I26: 28523.3 | J26: 28523.3
B27: областной бюджет | C27: =SUM(D27:J27) -> 5849.7 | D27: =SUM(D31+D46) -> 1214.7 | E27: 3659.9 | F27: 975.1 | G27: 0 | H27: 0 | I27: 0 | J27: 0
A28: 1. Капитальные вложения
B29: Всего по направлению «Капитальные вложения» всего, в том числе | C29: =SUM(D29:J29) -> 27198.3 | D29: =SUM(D30+D31) -> 3536.4 | E29: =SUM(E30+E31) -> 3674.7 | F29: =SUM(F30) -> 5000 | G29: =SUM(G30) -> 3746.8 | H29: =SUM(H30) -> 3746.8 | I29: =SUM(I30) -> 3746.8 | J29: =SUM(J30) -> 3746.8 | K29: Х
B30: местный бюджет | C30: =SUM(D30:J30) -> 22669.9 | D30: =SUM(D41) -> 2321.7 | E30: =SUM(E41) -> 361 | F30: 5000 | G30: 3746.8 | H30: 3746.8 | I30: 3746.8 | J30: 3746.8
B31: областной бюджет | C31: =SUM(D31:J31) -> 4528.4 | D31: =SUM(D38) -> 1214.7 | E31: =SUM(E38) -> 3313.7 | F31: 0 | G31: 0 | H31: 0 | I31: 0 | J31: 0
A32: 1.1. Бюджетные инвестиции в объекты капитального строительства
B33: Бюджетные инвестиции в объекты капитального строительства всего, в том числе | C33: 0 | D33: 0 | E33: 0 | F33: 0 | G33: 0 | H33: 0 | I33: 0 | J33: 0 | K33: Х
B34: местный бюджет | C34: 0 | D34: 0 | E34: 0 | F34: 0 | G34: 0 | H34: 0 | I34: 0 | J34: 0
A35: 1.2. Иные капитальные вложения
B36: Всего | C36: =SUM(D36:J36) -> 27198.3 | D36: =SUM(D37:D38) -> 3536.4 | E36: =SUM(E37:E38) -> 3674.7 | F36: 5000 | G36: 3746.8 | H36: 3746.8 | I36: 3746.8 | J36: 3746.8 | K36: Х
B37: местный бюджет | C37: =SUM(D37:J37) -> 22669.9 | D37: =SUM(D41) -> 2321.7 | E37: =SUM(E41) -> 361 | F37: 5000 | G37: 3746.8 | H37: 3746.8 | I37: 3746.8 | J37: 3746.8
B38: областной бюджет | C38: =SUM(D38:J38) -> 4528.4 | D38: =SUM(D42) -> 1214.7 | E38: =SUM(E42) -> 3313.7 | F38: 0 | G38: 0 | H38: 0 | I38: 0 | J38: 0
A39: Мероприятие 1 Благоустройство дворовых территорий Североуральского городского округа
B40: Всего, из них | C40: =SUM(D40:J40) -> 27198.3 | D40: =D41+D42 -> 3536.4 | E40: =SUM(E41:E42) -> 3674.7 | F40: =SUM(F41) -> 5000 | G40: =SUM(G41) -> 3746.8 | H40: =SUM(H41) -> 3746.8 | I40: =SUM(I41) -> 3746.8 | J40: =SUM(J41) -> 3746.8 | K40: 4
B41: местный бюджет | C41: =SUM(D41:J41) -> 22669.9 | D41: 2321.7 | E41: 361 | F41: 5000 | G41: 3746.8 | H41: 3746.8 | I41: =SUM(H41) -> 3746.8 | J41: =SUM(I41) -> 3746.8
B42: областной бюджет | C42: =D42+E42+F42+G42+H42+I42+J42 -> 4528.4 | D42: 1214.7 | E42: 3313.7 | F42: 0 | G42: 0 | H42: 0 | I42: 0 | J42: 0
A43: 3. Прочие нужды
B44: Всего по направлению «Прочие нужды», всего, в том числе: | C44: =SUM(D44:J44) -> 185407.4 | D44: =SUM(D45:D46) -> 22188.8 | E44: 26087.5 | F44: 38025.1 | G44: 24776.5 | H44: 24776.5 | I44: 24776.5 | J44: 24776.5 | K44: Х | N44: =SUM(E41+E49) -> 797
B45: местный бюджет | C45: =SUM(D45:J45) -> 184086.1 | D45: =SUM(D56+D59+D62+D65+D49+D106) -> 22188.8 | E45: =SUM(E56+E59+E62+E65+E49+E106) -> 25741.3 | F45: =SUM(F56+F59+F62+F65+F49+F106) -> 37050 | G45: 24776.5 | H45: 24776.5 | I45: 24776.5 | J45: 24776.5
B46: областной бюджет | C46: =SUM(D46:J46) -> 1321.3 | D46: =SUM(D66) -> 0 | E46: =SUM(E66) -> 346.2 | F46: =SUM(F107) -> 975.1 | G46: =SUM(G107) -> 0 | H46: =SUM(H107) -> 0 | I46: =SUM(I107) -> 0 | J46: =SUM(J107) -> 0
A47: Мероприятие 1 Благоустройство дворовых территорий Североуральского городского округа
B48: Всего, из них | C48: =SUM(D48:J48) -> 3246.9 | D48: =D49+D50 -> 310.9 | E48: =SUM(E49) -> 436 | F48: 2500 | G48: 0 | H48: 0 | I48: 0 | J48: 0 | K48: 4
B49: местный бюджет | C49: =SUM(D49:J49) -> 3246.9 | D49: 310.9 | E49: 436 | F49: 2500 | G49: 0 | H49: =SUM(G49) -> 0 | I49: =SUM(H49) -> 0 | J49: =SUM(I49) -> 0
B50: областной бюджет | C50: =D50+E50+F50+G50+H50+I50+J50 -> 0 | D50: 0 | E50: 0 | F50: 0 | G50: 0 | H50: 0 | I50: 0 | J50: 0
A51: Мероприятие 2 Благоустройство парков и скверов в городе Североуральске
B52: Всего, из них | C52: =SUM(D52:J52) -> 0 | D52: =D53+D54 -> 0 | E52: =SUM(E53) -> 0 | F52: 0 | G52: 0 | H52: 0 | I52: 0 | J52: 0 | K52: 5
B53: местный бюджет | C53: =SUM(D53:J53) -> 0 | D53: 0 | E53: 0 | F53: 0 | G53: 0 | H53: =SUM(G53) -> 0 | I53: =SUM(H53) -> 0 | J53: =SUM(I53) -> 0
A54: Мероприятие 3- Уличное освещение
B55: Всего, из них | C55: =SUM(D55:J55) -> 93301 | D55: =SUM(D56) -> 12001 | E55: 12600 | F55: 15900 | G55: 13200 | H55: 13200 | I55: 13200 | J55: 13200 | K55: 8
B56: местный бюджет | C56: =SUM(D56:J56) -> 93301 | D56: 12001 | E56: 12600 | F56: 15900 | G56: 13200 | H56: 13200 | I56: =SUM(H56) -> 13200 | J56: =SUM(I56) -> 13200
A57: Мероприятие 4 - Озеленение (цветники, валка сухих деревьев)
B58: Всего, из них | C58: =SUM(D58:J58) -> 22248.9 | D58: =SUM(D59) -> 2890.9 | E58: 2148 | F58: 4000 | G58: 3302.5 | H58: 3302.5 | I58: 3302.5 | J58: 3302.5 | K58: 10
B59: местный бюджет | C59: =SUM(D59:J59) -> 22248.9 | D59: 2890.9 | E59: 2148 | F59: 4000 | G59: 3302.5 | H59: 3302.5 | I59: =SUM(H59) -> 3302.5 | J59: =SUM(I59) -> 3302.5
A60: Мероприятие 5 - Организация и содержание мест захоронения
B61: Всего, из них | C61: =SUM(D61:J61) -> 19563.2 | D61: =SUM(D62) -> 2263.1 | E61: 2306.9 | F61: 3550 | G61: 2860.8 | H61: 2860.8 | I61: 2860.8 | J61: 2860.8 | K61: 15
B62: местный бюджет | C62: =SUM(D62:J62) -> 19563.2 | D62: 2263.1 | E62: 2306.9 | F62: 3550 | G62: 2860.8 | H62: 2860.8 | I62: =SUM(H62) -> 2860.8 | J62: =SUM(I62) -> 2860.8
A63: Мероприятие 6 - Прочие мероприятия по благоустройству
B64: Всего, в том числе: | C64: =SUM(D64:J64) -> 42472.3 | D64: =SUM(D65:D66) -> 4722.9 | E64: =SUM(E65:E66) -> 8596.6 | F64: 10300 | G64: 4713.2 | H64: 4713.2 | I64: 4713.2 | J64: 4713.2 | K64: 5,6,10,12,13,14,16
B65: местный бюджет | C65: =SUM(D65:J65) -> 42126.1 | D65: =SUM(D69+D72+D79+D82+D91+D85+D94+D100+D88+D97+D75) -> 4722.9 | E65: =SUM(E69+E72+E79+E82+E91+E85+E94+E100+E88+E97+E75+E103) -> 8250.4 | F65: 10300 | G65: 4713.2 | H65: 4713.2 | I65: 4713.2 | J65: 4713.2
B66: областной бюджет | C66: =SUM(D66:J66) -> 346.2 | D66: =SUM(D76) -> 0 | E66: =SUM(E76) -> 346.2 | F66: 0 | G66: 0 | H66: 0 | I66: 0 | J66: 0
A67: - Содержание памятников
B68: Всего: | C68: =SUM(C69) -> 2988.1 | D68: 369.2 | E68: 404.9 | F68: 450 | G68: 441 | H68: 441 | I68: 441 | J68: 441 | K68: 16
B69: местный бюджет | C69: =SUM(D69:J69) -> 2988.1 | D69: 369.2 | E69: 404.9 | F69: 450 | G69: 441 | H69: 441 | I69: =SUM(H69) -> 441 | J69: =SUM(I69) -> 441
A70: - Проведение комплекса профилактических работ по уходу за объектами благоустройства
B71: Всего: | C71: =SUM(C72) -> 8126 | D71: =SUM(D72) -> 1098.7 | E71: =SUM(E72) -> 976.1 | F71: 1200 | G71: 1212.8 | H71: 1212.8 | I71: 1212.8 | J71: 1212.8 | K71: 5
B72: местный бюджет | C72: =SUM(D72:J72) -> 8126 | D72: 1098.7 | E72: 976.1 | F72: 1200 | G72: 1212.8 | H72: 1212.8 | I72: =SUM(H72) -> 1212.8 | J72: =SUM(I72) -> 1212.8
A73: - Регулирование численности безнадзорных животных
B74: Всего: | C74: =SUM(D74:J74) -> 1677.2 | D74: =SUM(D75:D76) -> 500 | E74: =SUM(E75:E76) -> 1177.2 | F74: 0 | G74: 0 | H74: 0 | I74: 0 | J74: 0 | K74: 12
B75: местный бюджет | C75: =SUM(D75:J75) -> 1331 | D75: 500 | E75: 831 | F75: 0 | G75: 0 | H75: 0 | I75: =SUM(H75) -> 0 | J75: =SUM(I75) -> 0
B76: областной бюджет | C76: =SUM(D76:J76) -> 346.2 | E76: 346.2
A77: - Содержание биоямы (скотомогильник)
B78: Всего: | C78: =SUM(C79) -> 927 | D78: =SUM(D79) -> 116.1 | E78: =SUM(E79) -> 69.3 | F78: 80 | G78: 165.4 | H78: 165.4 | I78: 165.4 | J78: 165.4 | K78: 14
B79: местный бюджет | C79: =SUM(D79:J79) -> 927 | D79: 116.1 | E79: 69.3 | F79: 80 | G79: 165.4 | H79: 165.4 | I79: =SUM(H79) -> 165.4 | J79: =SUM(I79) -> 165.4
A80: - Обустройство и эксплуатация новогодних городков
B81: Всего: | C81: =SUM(C82) -> 16019.1 | D81: =SUM(D82) -> 1685.5 | E81: =SUM(E82) -> 2669.2 | F81: 2250 | G81: 2353.6 | H81: 2353.6 | I81: 2353.6 | J81: 2353.6 | K81: 5
B82: местный бюджет | C82: =SUM(D82:J82) -> 16019.1 | D82: 1685.5 | E82: 2669.2 | F82: 2250 | G82: 2353.6 | H82: 2353.6 | I82: =SUM(H82) -> 2353.6 | J82: =SUM(I82) -> 2353.6
A83: - Приобретение декоративного освещения для улиц города Североуральска
B84: Всего: | C84: =SUM(C85) -> 2474.4 | D84: =SUM(D85) -> 773.4 | E84: =SUM(E85) -> 1701 | F84: 0 | G84: 0 | H84: 0 | I84: 0 | J84: 0 | K84: 5
B85: местный бюджет | C85: =SUM(D85:J85) -> 2474.4 | D85: 773.4 | E85: 1701 | F85: 0 | G85: 0 | H85: =SUM(G85) -> 0 | I85: =SUM(H85) -> 0 | J85: =SUM(I85) -> 0
A86: - Обслуживание декоративного освещения для улиц города Североуральска
B87: Всего: | C87: =SUM(C88) -> 0 | D87: =SUM(D88) -> 0 | E87: =SUM(E88) -> 0 | F87: 0 | G87: 0 | H87: 0 | I87: 0 | J87: 0 | K87: 5
B88: местный бюджет | C88: =SUM(D88:J88) -> 0 | D88: 0 | E88: 0 | F88: 0 | G88: 0 | H88: 0 | I88: =SUM(H88) -> 0 | J88: =SUM(I88) -> 0
A89: - Акарицидная обработка общественных мест
B90: Всего: | C90: =SUM(C91) -> 1685.1 | D90: =SUM(D91) -> 92 | E90: =SUM(E91) -> 99.9 | F90: 170 | G90: 330.8 | H90: 330.8 | I90: 330.8 | J90: 330.8 | K90: 13
B91: местный бюджет | C91: =SUM(D91:J91) -> 1685.1 | D91: 92 | E91: 99.9 | F91: 170 | G91: 330.8 | H91: 330.8 | I91: =SUM(H91) -> 330.8 | J91: =SUM(I91) -> 330.8
A92: - Приобретение грунта плодородного (земли садовой)
B93: Всего: | C93: =SUM(C94) -> 976.4 | D93: =SUM(D94) -> 88 | E93: =SUM(E94) -> 0 | F93: 50 | G93: 209.6 | H93: 209.6 | I93: 209.6 | J93: 209.6 | K93: 10
B94: местный бюджет | C94: =SUM(D94:J94) -> 976.4 | D94: 88 | E94: 0 | F94: 50 | G94: 209.6 | H94: 209.6 | I94: =SUM(H94) -> 209.6 | J94: =SUM(I94) -> 209.6
A95: - Приобретение и установка металлических урн и скамеек
B96: Всего: | C96: =SUM(C97) -> 0 | D96: =SUM(D97) -> 0 | E96: =SUM(E97) -> 0 | F96: 0 | G96: 0 | H96: 0 | I96: 0 | J96: 0 | K96: 6
B97: местный бюджет | C97: =SUM(D97:J97) -> 0 | D97: 0 | E97: 0 | F97: 0 | G97: 0 | H97: 0 | I97: =SUM(H97) -> 0 | J97: =SUM(I97) -> 0
A98: - Благоустройство мест общего пользования территории Североуральского городского округа
B99: Всего: | C99: =SUM(C100) -> 6499 | D99: =SUM(D100) -> 0 | E99: =SUM(E100) -> 1499 | F99: 5000 | G99: 0 | H99: 0 | I99: 0 | J99: 0 | K99: 5
B100: местный бюджет | C100: =SUM(D100:J100) -> 6499 | D100: 0 | E100: 1499 | F100: 5000 | G100: 0 | H100: 0 | I100: =SUM(H100) -> 0 | J100: =SUM(I100) -> 0
A101: - Приобретение и установка остановочных комплексов на территории Североуральского городского округа
B102: Всего: | C102: =SUM(C103) -> 1100 | D102: =SUM(D103) -> 0 | E102: =SUM(E103) -> 0 | F102: 1100 | G102: 0 | H102: 0 | I102: 0 | J102: 0 | K102: 5
B103: местный бюджет | C103: =SUM(D103:J103) -> 1100 | D103: 0 | E103: 0 | F103: 1100 | G103: 0 | H103: 0 | I103: =SUM(H103) -> 0 | J103: =SUM(I103) -> 0
A104: Мероприятие 7 - Регулирование численности безнадзорных животных
B105: Всего, из них | C105: =SUM(D105:J105) -> 4575.1 | D105: =SUM(D106:D107) -> 0 | E105: =SUM(E106:E107) -> 0 | F105: 1775.1 | G105: 700 | H105: 700 | I105: 700 | J105: 700 | K105: 12
B106: местный бюджет | C106: =SUM(D106:J106) -> 3600 | D106: 0 | E106: 0 | F106: 800 | G106: 700 | H106: 700 | I106: =SUM(H106) -> 700 | J106: =SUM(I106) -> 700
B107: областной бюджет | C107: =SUM(D107:J107) -> 975.1 | E107: 0 | F107: 975.1
A108: Подпрограмма 2: Муниципальная программа по энергосбережению и повышению энергетической эффективности объектов Североуральского городского округа
B109: Всего по подпрограмме 2, в том числе | C109: =SUM(D109:J109) -> 74497.3 | D109: =SUM(D110:D111) -> 9165.5 | E109: 2961.6 | F109: 17065 | G109: 10576.3 | H109: 11576.3 | I109: 11576.3 | J109: 11576.3 | K109: Х
B110: местный бюджет | C110: =SUM(D110:J110) -> 68152.9 | D110: =SUM(D114+D160) -> 2821.1 | E110: =SUM(E114+E160) -> 2961.6 | F110: =F114+F160 -> 17065 | G110: =SUM(G114+G160) -> 10576.3 | H110: 11576.3 | I110: 11576.3 | J110: 11576.3
B111: областной бюджет | C111: =SUM(D111:J111) -> 6344.4 | D111: =SUM(D115+D161) -> 6344.4 | E111: =SUM(E115+E161) -> 0 | F111: =SUM(F115+F161) -> 0 | G111: 0 | H111: 0 | I111: 0 | J111: 0
A112: 1. Капитальные вложения
B113: Всего по направлению «Капитальные вложения», всего, в том числе | C113: =SUM(C114:C115) -> 40938.8 | D113: 4173.6 | E113: 1420 | F113: 15500 | G113: 4961.3 | H113: 4961.3 | I113: 4961.3 | J113: 4961.3 | K113: Х
B114: местный бюджет | C114: =SUM(D114:J114) -> 37594.4 | D114: =SUM(D148+D118) -> 829.2 | E114: 1420 | F114: 15500 | G114: 4961.3 | H114: 4961.3 | I114: 4961.3 | J114: 4961.3
B115: областной бюджет | C115: =SUM(D115:J115) -> 3344.4 | D115: 3344.4 | E115: 0 | F115: 0 | G115: 0 | H115: 0 | I115: 0 | J115: 0
A116: 1.1. Бюджетные инвестиции в объекты капитального строительства
B117: Бюджетные инвестиции в объекты капитального строительства всего, в том числе | C117: =SUM(D117:J117) -> 15500 | D117: =SUM(D118:D119) -> 0 | E117: =SUM(E118:E119) -> 0 | F117: 15500 | G117: 0 | H117: 0 | I117: 0 | J117: 0 | K117: Х
B118: местный бюджет | C118: =SUM(D118:J118) -> 15500 | D118: =SUM(D122+D134+D137+D141+D144) -> 0 | E118: 0 | F118: 15500 | G118: 0 | H118: 0 | I118: 0 | J118: 0
B119: областной бюджет | C119: =SUM(D119:J119) -> 0 | D119: =SUM(D123+D138+D145) -> 0 | E119: =SUM(E123+E138+E145) -> 0 | F119: 0 | G119: 0 | H119: 0 | I119: 0 | J119: 0
A120: Мероприятие 3 - Закупка и установка осветительного оборудования с заменой неэффективного на энергосберегающее, в том числе замена ламп накаливания на энергосберегающие, строительство, модернизация сетей уличного освещения, проектно-сметные работы, экспертиза проектно-сметной документации
B121: Всего, из них | C121: =SUM(C122:C123) -> 12500 | D121: =SUM(D122:D123) -> 0 | E121: =SUM(E122:E123) -> 0 | F121: 12500 | G121: 0 | H121: 0 | I121: 0 | J121: 0 | K121: 27
B122: местный бюджет | C122: =SUM(D122:J122) -> 12500 | D122: 0 | E122: 0 | F122: =SUM(F130+F126) -> 12500 | G122: 0 | H122: =SUM(G122) -> 0 | I122: 0 | J122: 0
B123: областной бюджет | C123: =SUM(D123:J123) -> 0 | D123: 0 | E123: 0 | F123: 0 | G123: 0 | H123: 0 | I123: 0 | J123: 0
A124: - Разработка ПСД на строительство сетей уличного освещения микрорайона Южный
B125: Всего: | C125: =SUM(C126) -> 453.2 | D125: 0 | E125: 0 | F125: 453.2 | G125: 0 | H125: 0 | I125: 0 | J125: 0 | K125: 27
B126: местный бюджет | C126: =SUM(D126:J126) -> 453.2 | D126: 0 | E126: 0 | F126: 453.2 | G126: 0 | H126: 0 | I126: =SUM(H126) -> 0 | J126: =SUM(I126) -> 0
B127: областной бюджет | C127: =SUM(D127:J127) -> 0 | D127: 0 | E127: 0 | F127: 0 | G127: 0 | H127: 0 | I127: 0 | J127: 0
A128: - Строительство сетей уличного освещения микрорайона Южный
B129: Всего: | C129: =SUM(C130) -> 12046.8 | D129: 0 | E129: 0 | F129: 12046.8 | G129: 0 | H129: 0 | I129: 0 | J129: 0 | K129: 27
B130: местный бюджет | C130: =SUM(D130:J130) -> 12046.8 | D130: 0 | E130: 0 | F130: 12046.8 | G130: 0 | H130: 0 | I130: =SUM(H130) -> 0 | J130: =SUM(I130) -> 0
B131: областной бюджет | C131: =SUM(D131:J131) -> 0 | D131: 0 | E131: 0 | F131: 0 | G131: 0 | H131: 0 | I131: 0 | J131: 0
A132: Мероприятие 5 - Разработка, экспертиза проектно-сметной документации на строительство сетей водоснабжения в Североуральском городском округе
B133: Всего, из них | C133: =SUM(D133:J133) -> 0 | D133: =SUM(D134) -> 0 | E133: =SUM(E134) -> 0 | F133: 0 | G133: 0 | H133: 0 | I133: 0 | J133: 0 | K133: 30
B134: местный бюджет | C134: =SUM(D134:J134) -> 0 | D134: 0 | E134: 0 | F134: 0 | G134: 0 | H134: =SUM(G134) -> 0 | I134: =SUM(H134) -> 0 | J134: =SUM(I134) -> 0
A135: Мероприятие 6 - Строительство сетей водоснабжения в Североуральском городском округе
B136: Всего, из них | C136: =SUM(C137:C138) -> 0 | D136: =SUM(D137:D138) -> 0 | E136: =SUM(E137:E138) -> 0 | F136: 0 | G136: 0 | H136: 0 | I136: 0 | J136: 0 | K136: 31
B137: местный бюджет | C137: =SUM(D137:J137) -> 0 | D137: 0 | E137: 0 | F137: 0 | G137: 0 | H137: =SUM(G137) -> 0 | I137: 0 | J137: 0
B138: областной бюджет | C138: =SUM(D138:J138) -> 0 | D138: 0 | E138: 0 | F138: 0 | G138: 0 | H138: 0 | I138: 0 | J138: 0
A139: Мероприятие 7 - Разработка, экспертиза проектно-сметной документации на строительство котельных в Североуральском городском округе
B140: Всего, из них | C140: =SUM(D140:J140) -> 3000 | D140: =SUM(D141) -> 0 | E140: =SUM(E141) -> 0 | F140: 3000 | G140: 0 | H140: 0 | I140: 0 | J140: 0 | K140: 32
B141: местный бюджет | C141: =SUM(D141:J141) -> 3000 | D141: 0 | E141: 0 | F141: 3000 | G141: 0 | H141: =SUM(G141) -> 0 | I141: =SUM(H141) -> 0 | J141: =SUM(I141) -> 0
A142: Мероприятие 8 - Строительство котельных в Североуральском городском округе
B143: Всего, из них | C143: =SUM(C144:C145) -> 0 | D143: =SUM(D144:D145) -> 0 | E143: =SUM(E144:E145) -> 0 | F143: 0 | G143: 0 | H143: 0 | I143: 0 | J143: 0 | K143: 33
B144: местный бюджет | C144: =SUM(D144:J144) -> 0 | D144: 0 | E144: 0 | F144: 0 | G144: 0 | H144: 0 | I144: =SUM(H144) -> 0 | J144: =SUM(I144) -> 0
B145: областной бюджет | C145: =SUM(D145:J145) -> 0 | D145: 0 | E145: 0 | F145: 0 | G145: 0 | H145: =SUM(G145) -> 0 | I145: =SUM(H145) -> 0 | J145: =SUM(I145) -> 0
A146: 1.2. Иные капитальные вложения
B147: Всего, в том числе | C147: =SUM(C148:C149) -> 25438.8 | D147: 4173.6 | E147: 1420 | F147: 0 | G147: 4961.3 | H147: 4961.3 | I147: 4961.3 | J147: 4961.3 | K147: Х
B148: местный бюджет | C148: =SUM(D148:J148) -> 22094.4 | D148: =SUM(D152+D156) -> 829.2 | E148: =SUM(E152+E156) -> 1420 | F148: 0 | G148: 4961.3 | H148: 4961.3 | I148: 4961.3 | J148: 4961.3
B149: областной бюджет | C149: =SUM(D149:J149) -> 3344.4 | D149: =SUM(D153+D157) -> 3344.4 | E149: =SUM(E153+E157) -> 0 | F149: 0 | G149: 0 | H149: 0 | I149: 0 | J149: 0
A150: Мероприятие 1- Реконструкция, модернизация водопроводных сетей, сетей системы водоотведения с заменой (без замены) оборудования с более высоким КПД, установка регулируемого привода, реконструкция тепловых сетей, в том числе тепловых пунктов, котельных, капитальный ремонт систем коммунального хозяйства
B151: Всего, в том числе: | C151: =SUM(C152:C153) -> 22882.6 | D151: 3037.4 | E151: 0 | F151: 0 | G151: 4961.3 | H151: 4961.3 | I151: 4961.3 | J151: 4961.3 | K151: 28
B152: местный бюджет | C152: =SUM(D152:J152) -> 20126.2 | D152: 281 | E152: 0 | F152: 0 | G152: 4961.3 | H152: 4961.3 | I152: =SUM(H152) -> 4961.3 | J152: 4961.3
B153: областной бюджет | C153: =SUM(D153:J153) -> 2756.4 | D153: 2756.4 | E153: 0 | F153: 0 | G153: 0 | H153: 0 | I153: 0 | J153: 0
A154: Мероприятие 3 - Закупка и установка осветительного оборудования с заменой неэффективного на энергосберегающее, в том числе замена ламп накаливания на энергосберегающие, строительство, модернизация сетей уличного освещения, проектно-сметные работы, экспертиза проектно-сметной документации
B155: Всего, из них | C155: =SUM(C156:C157) -> 2556.2 | D155: =SUM(D156:D157) -> 1136.2 | E155: =SUM(E156:E157) -> 1420 | F155: 0 | G155: 0 | H155: 0 | I155: 0 | J155: 0 | K155: 27
B156: местный бюджет | C156: =SUM(D156:J156) -> 1968.2 | D156: 548.2 | E156: 1420 | F156: 0 | G156: 0 | H156: =SUM(G156) -> 0 | I156: 0 | J156: 0
B157: областной бюджет | C157: =SUM(D157:J157) -> 588 | D157: 588 | E157: 0 | F157: 0 | G157: 0 | H157: 0 | I157: 0 | J157: 0
A158: 3. Прочие нужды
B159: Всего по направлению «Прочие нужды», всего, в том числе: | C159: =SUM(D159:J159) -> 33558.5 | D159: =SUM(D160:D161) -> 4991.9 | E159: =SUM(E160:E161) -> 1541.6 | F159: 1565 | G159: 5615 | H159: 6615 | I159: 6615 | J159: 6615 | K159: Х
B160: местный бюджет | C160: =SUM(D160:J160) -> 30558.5 | D160: =SUM(D164+D169+D173+D176) -> 1991.9 | E160: =SUM(E164+E169+E173+E176) -> 1541.6 | F160: 1565 | G160: 5615 | H160: 6615 | I160: 6615 | J160: 6615
B161: областной бюджет | C161: =SUM(D161:J161) -> 3000 | D161: =SUM(D165+D170) -> 3000 | E161: =SUM(E165+E170) -> 0 | F161: 0 | G161: 0 | H161: 0 | I161: 0 | J161: 0
A162: Мероприятие 2 - Оснащение зданий (строений, сооружений), находящихся в муниципальной собственности, многоквартирных жилых домов, жилых помещений, квартир приборами учета используемых энергетических ресурсов, в том числе разработка проектно-сметной документации
B163: Всего, из них | C163: =SUM(D163:J163) -> 19011 | D163: =SUM(D164:D165) -> 4200 | E163: 1100 | F163: 1481 | G163: 2307.5 | H163: 3307.5 | I163: 3307.5 | J163: 3307.5 | K163: 20,22,23,24,25
B164: местный бюджет | C164: =SUM(D164:J164) -> 16011 | D164: 1200 | E164: 1100 | F164: 1481 | G164: 2307.5 | H164: 3307.5 | I164: =SUM(H164) -> 3307.5 | J164: =SUM(I164) -> 3307.5
B165: областной бюджет | C165: =SUM(D165:J165) -> 3000 | D165: 3000 | E165: =SUM(E166) -> 0 | F165: 0 | G165: 0 | H165: 0 | I165: 0 | J165: 0
B166: федеральный бюджет | C166: =SUM(D166:J166) -> 0 | D166: 0 | E166: 0 | F166: 0 | G166: =SUM(F166) -> 0 | H166: =SUM(G166) -> 0 | I166: =SUM(H166) -> 0 | J166: =SUM(I166) -> 0
A167: Мероприятие 3 - Закупка и установка осветительного оборудования с заменой неэффективного на энергосберегающее, в том числе замена ламп накаливания на энергосберегающие, строительство, модернизация сетей уличного освещения, проектно-сметные работы, экспертиза проектно-сметной документации
B168: Всего, из них | C168: =SUM(C169:C170) -> 13821.9 | D168: =SUM(D169:D170) -> 411.9 | E168: =SUM(E169:E170) -> 180 | F168: 0 | G168: 3307.5 | H168: 3307.5 | I168: 3307.5 | J168: 3307.5 | K168: 27
B169: местный бюджет | C169: =SUM(D169:J169) -> 13821.9 | D169: 411.9 | E169: 180 | F169: 0 | G169: 3307.5 | H169: 3307.5 | I169: =SUM(H169) -> 3307.5 | J169: 3307.5
B170: областной бюджет | C170: =SUM(D170:J170) -> 0 | D170: 0 | E170: 0 | F170: 0 | G170: 0 | H170: 0 | I170: 0 | J170: 0
A171: Мероприятие 4- Разработка схемы водоснабжения Североуральского городского округа
B172: Всего, из них | C172: =SUM(D172:J172) -> 380 | D172: =SUM(D173) -> 380 | E172: =SUM(E173) -> 0 | F172: 0 | G172: 0 | H172: 0 | I172: 0 | J172: 0 | K172: 29
B173: местный бюджет | C173: =SUM(D173:J173) -> 380 | D173: 380 | E173: 0 | F173: 0 | G173: =SUM(F173) -> 0 | H173: =SUM(G173) -> 0 | I173: =SUM(H173) -> 0 | J173: =SUM(I173) -> 0
A174: Мероприятие 9- Прочие мероприятия в области энергосбережения (разработка технических заданий, топливно-энерготехнического баланса и т.п.)
B175: Всего, из них | C175: =SUM(D175:J175) -> 345.6 | D175: =SUM(D176) -> 0 | E175: =SUM(E176) -> 261.6 | F175: 84 | G175: 0 | H175: 0 | I175: 0 | J175: 0 | K175: 34.35
B176: местный бюджет | C176: =SUM(D176:J176) -> 345.6 | D176: 0 | E176: 261.6 | F176: 84 | G176: 0 | H176: 0 | I176: =SUM(H176) -> 0 | J176: =SUM(I176) -> 0
A177: Подпрограмма 3: Развитие лесного хозяйства на территории Североуральского городского округа
B178: Всего по подпрограмме 1, всего, в том числе | C178: =SUM(C179:C179) -> 2797.6 | D178: =SUM(D179) -> 774.1 | E178: =SUM(E179) -> 881.1 | F178: 300 | G178: 210.6 | H178: 210.6 | I178: 210.6 | J178: 210.6 | K178: Х
B179: местный бюджет | C179: =SUM(D179:J179) -> 2797.6 | D179: =SUM(D191) -> 774.1 | E179: =SUM(E191) -> 881.1 | F179: 300 | G179: 210.6 | H179: 210.6 | I179: 210.6 | J179: 210.6
A180: 1. Капитальные вложения
B181: Всего по направлению «Капитальные вложения», всего, в том числе | C181: 0 | D181: 0 | E181: 0 | F181: 0 | G181: 0 | H181: 0 | I181: 0 | J181: 0 | K181: Х
B182: местный бюджет | C182: 0 | D182: 0 | E182: 0 | F182: 0 | G182: 0 | H182: 0 | I182: 0 | J182: 0
A183: 1.1. Бюджетные инвестиции в объекты капитального строительства
B184: Бюджетные инвестиции в объекты капитального строительства всего, в том числе: | C184: =SUM(C185) -> 0 | D184: =SUM(D185) -> 0 | E184: 0 | F184: 0 | G184: 0 | H184: 0 | I184: 0 | J184: 0 | K184: Х
B185: местный бюджет | C185: 0 | D185: 0 | E185: 0 | F185: 0 | G185: 0 | H185: 0 | I185: 0 | J185: 0
A186: 1.2. Иные капитальные вложения
B187: Всего, в том числе: | C187: =SUM(A189) -> 0 | D187: 0 | E187: 0 | F187: 0 | G187: 0 | H187: 0 | I187: 0 | J187: 0 | K187: Х
B188: местный бюджет | C188: 0 | D188: 0 | E188: 0 | F188: 0 | G188: 0 | H188: 0 | I188: 0 | J188: 0
A189: 3. Прочие нужды
B190: Всего, из них | C190: =SUM(C191:C191) -> 2797.6 | D190: 774.1 | E190: 881.1 | F190: 300 | G190: 210.6 | H190: 210.6 | I190: 210.6 | J190: 210.6 | K190: Х
B191: местный бюджет | C191: =SUM(D191:J191) -> 2797.6 | D191: =SUM(D194) -> 774.1 | E191: =SUM(E194) -> 881.1 | F191: 300 | G191: 210.6 | H191: 210.6 | I191: 210.6 | J191: 210.6
A192: Мероприятие 1- Развитие лесного хозяйства на территории Североуральского городского округа
B193: Всего, в том числе: | C193: =SUM(D193:J193) -> 2797.6 | D193: =SUM(D194) -> 774.1 | E193: =SUM(E194) -> 881.1 | F193: 300 | G193: 210.6 | H193: 210.6 | I193: 210.6 | J193: 210.6 | K193: 39
B194: местный бюджет | C194: =SUM(D194:J194) -> 2797.6 | D194: 774.1 | E194: 881.1 | F194: 300 | G194: 210.6 | H194: 210.6 | I194: =SUM(H194) -> 210.6 | J194: =SUM(I194) -> 210.6
A195: Подпрограмма 4 : Переселение граждан на территории Североуральского городского округа из аварийного жилищного фонда
B196: Всего по подпрограмме 4, всего, в том числе | C196: =SUM(C197:C199) -> 555716.6 | D196: =SUM(D197:D199) -> 223750 | E196: 267296.1 | F196: 64670.5 | G196: 0 | H196: 0 | I196: 0 | J196: 0 | K196: Х
B197: местный бюджет | C197: =SUM(D197:J197) -> 109815.4 | D197: =SUM(D202+D220) -> 40275 | E197: =SUM(E202+E220) -> 49352.1 | F197: 20188.3 | G197: 0 | H197: 0 | I197: 0 | J197: 0
B198: областной бюджет | C198: =SUM(D198:J198) -> 259590 | D198: =SUM(D203) -> 101657 | E198: =SUM(E203) -> 131444.4 | F198: 26488.6 | G198: 0 | H198: 0 | I198: 0 | J198: 0
B199: федеральный бюджет | C199: =SUM(D199:J199) -> 186311.2 | D199: =SUM(D204) -> 81818 | E199: =SUM(E204) -> 86499.6 | F199: 17993.6 | G199: 0 | H199: 0 | I199: 0 | J199: 0
A200: 1. Капитальные вложения
B201: Всего по направлению «Капитальные вложения», всего, в том числе | C201: =SUM(C202:C204) -> 551805.8 | D201: =SUM(D202:D204) -> 223750 | E201: =SUM(E202:E204) -> 265785.3 | F201: 62270.5 | G201: 0 | H201: 0 | I201: 0 | J201: 0 | K201: Х
... 177 more rows

Sheet Лист2

Sheet Лист3
